[Event "USA-ch Women 2024"]
[Site "Saint Louis"]
[Date "2024.10.12"]
[Round "2.5"]
[White "Tokhirjonova, Gulrukhbegim"]
[Black "Pourkashiyan, Atousa"]
[Result "0-1"]
[ECO "D48"]
[WhiteElo "2374"]
[BlackElo "2269"]
[Annotator "TA"]
[PlyCount "140"]
[EventDate "2024.10.09"]
[EventType "tourn"]
[EventCountry "USA"]
[SourceTitle "playchess.com"]
[Source "ChessBase"]
[SourceQuality "1"]
[TimeControl "40/5400+30:1800+30"]

{[%evp 40,140,-43,-80,0,0,0,0,0,0,0,-8,0,-10,-6,-49,-45,-85,-12,-22,-26,-20,-14,-14,-15,-11,-8,-98,-107,-114,-100,-226,-154,-154,0,0,0,0,0,-104,-83,-255,-267,-257,-258,-655,-622,-611,-655,-627,-633,-611,-14,-8,-8,-8,-81,-198,-209,-596,0,0,0,-29966,-29965,-29967,-29967,-29967,-29968,-29970,-29969,-29969,-29970,-29970,-29971,-29971,-29972,-29972,-29973,-29973,-29974,-29974,-29975,-29975,-29976,-29976,-29977,-29977,-29978,-29977,-29978,-29978,-29977,-29977,-29978,-29978,-29979,-29979,-29980,-29983,-29984,-29984,-29985]} 1. c4 {[%emt 0:00:17]} e6 {[%emt 0:00:31]} 2. Nc3 {[%emt 0:00:17]} d5 {[%emt 0:00:23]} 3. d4 {[%emt 0:00:15]} a6 {[%emt 0:00:25]} 4. Nf3 {[%emt 0:03:49]} dxc4 {[%emt 0:01:20]} 5. e3 {[%emt 0:03:09]} b5 {[%emt 0:01:13]} 6. a4 {[%emt 0:01:32]} b4 {[%emt 0:01:17]} 7. Nb1 {[%emt 0:00:40]} c5 {[%emt 0:03:23]} 8. Bxc4 {[%emt 0:00:56]} Bb7 {[%emt 0:00:53]} 9. O-O {[%emt 0:01:23]} Nf6 {[%emt 0:00:56]} 10. Nbd2 {[%emt 0:01:20]} Nbd7 {[%emt 0:06:10]} 11. a5 {[%emt 0:05:42]} Be7 {[%emt 0:02:40]} 12. Bd3 {[%emt 0:07:55]} O-O {[%emt 0:07:32] D48: Semi-Slav: Meran System: 7...b5 8 Bd3 a6.} 13. Nc4 {[%emt 0:00:33]} Be4 {[%emt 0:11:16]} 14. Bxe4 {[%emt 0:08:00]} Nxe4 {[%emt 0:00:03]} 15. Qc2 $146 {[%emt 0:00:29]} ({Predecessor:} 15. Qd3 Nd6 16. Nce5 Nxe5 17. Nxe5 Qc7 18. Bd2 cxd4 19. Rac1 Qb7 20. exd4 {0-1 Koskinen,E-Mujunen,M FIN-ch SM1 corr 1987}) 15... Nd6 {[%emt 0:09:58]} 16. Rd1 {[%emt 0:05:57]} Nxc4 {[%emt 0:02:54]} 17. Qxc4 {[%emt 0:00:24]} Qc8 {[%emt 0:00:17]} 18. Qe2 {[%emt 0:15:08]} cxd4 {[%emt 0:06:13]} 19. exd4 {[%emt 0:02:52]} Nf6 {[%emt 0:05:44]} 20. Ne5 {[%emt 0:06:21]} Qb7 {[%emt 0:07:08]} 21. h4 {[%emt 0:07:48]} Qe4 {[%emt 0:04:33]} (21... Rac8 $17) 22. Qxe4 $11 {[%emt 0:08:21]} Nxe4 {[%emt 0:00:03]} 23. Re1 {[%emt 0:01:42]} f5 {[%emt 0:07:49]} 24. g3 {[%emt 0:02:44]} Rfc8 {[%emt 0:00:28]} 25. Nd3 {[%emt 0:02:52]} Rc2 {[%emt 0:06:38]} 26. Be3 {[%emt 0:00:07]} b3 {[%emt 0:01:29]} 27. Red1 {[%emt 0:00:28]} Rac8 {[%emt 0:02:05]} 28. Rab1 {[%emt 0:04:35]} Bd8 {[%emt 0:03:19]} (28... g5 $17 29. hxg5 Bxg5 30. Bxg5 Nxg5) 29. Nc5 $1 $11 {[%emt 0:04:11]} Nxc5 {[%emt 0:01:11]} 30. dxc5 {[%emt 0:00:02]} Bxa5 {[%emt 0:00:32]} 31. Rd6 {[%emt 0:02:38]} Bb4 {[%emt 0:01:15]} 32. Rxa6 {[%emt 0:00:08]} Bxc5 {[%emt 0:00:41]} 33. Rxe6 {[%emt 0:00:12]} (33. Bxc5 $11 R8xc5 34. Rxe6) 33... Kf7 $17 {[%emt 0:01:32]} 34. Re5 {[%emt 0:02:06]} Kf6 $1 {[%emt 0:00:03]} 35. f4 {[%emt 0:02:03]} (35. Rxc5 $17 R2xc5 (35... R8xc5 36. Bd4+ Kf7 37. Bxc5 $17) 36. Bd4+ Kf7 37. Bxc5 Rxc5 38. Kg2) 35... Rc6 {[%emt 0:03:43]} 36. h5 {[%emt 0:00:49]} h6 $2 {[%emt 0:01:35]} ({Better is} 36... Rc1+ $17 37. Rxc1 Bxe3+ 38. Rxe3 Rxc1+ 39. Kf2 Rc2+ 40. Ke1 (40. Re2 $2 g5 $19) 40... Rxb2) 37. Bxc5 $11 {[%emt 0:00:30]} R6xc5 {[%emt 0:00:06]} 38. Re3 {[%emt 0:00:10]} Rb5 {[%emt 0:01:32]} 39. Ra1 {[%emt 0:00:41]} (39. Rbe1 $11) 39... Rb7 $1 $17 {[%emt 0:00:31]} (39... Rxb2 $6 40. Ra6+ Kf7 41. Ra7+ Kf8 (41... Kg8 42. Re8+ Kh7 43. Raa8) 42. Ra8+ Kf7 43. Ra7+ Kf8 (43... Kg8 44. Re8+ Kh7 45. Raa8) 44. Ra8+ Kf7 45. Ra7+ $11) 40. Ra6+ $2 {[%emt 0:00:43]} (40. Rb1 $17 {keeps fighting.}) 40... Kf7 $19 {[%emt 0:00:03]} 41. Ra5 {[%emt 0:01:31]} g6 {[%emt 0:10:31]} ({Stronger than} 41... Rxb2 42. Rxf5+ Kg8 43. Re8+ Kh7 44. Rff8 $11) 42. hxg6+ $2 {[%emt 0:07:53]} (42. Ree5 Rxb2 43. Rab5) 42... Kxg6 $19 {[%emt 0:01:05]} 43. g4 {[%emt 0:01:01]} fxg4 {[%emt 0:05:46]} 44. Re6+ {[%emt 0:00:16]} Kg7 {[%emt 0:01:02]} 45. Raa6 {[%emt 0:03:03]} h5 $2 {[%emt 0:02:35]} (45... Rd7 $19 {( -> ...Rd1+)} 46. Rg6+ Kf7 47. Rgf6+ Ke8 48. Rfe6+ Re7 49. Rxe7+ Kxe7 50. Rxh6 Rxb2) 46. Rg6+ $11 {[%emt 0:01:55]} Kf8 {[%emt 0:02:33]} 47. Ra8+ $1 {[%emt 0:00:35]} Kf7 {[%emt 0:00:21]} 48. Rh6 {[%emt 0:00:32] [#]} Kg7 $1 {[%emt 0:04:11]} (48... Rxb2 49. Rh7+ (49. Rxh5 Kg7 $11) 49... Ke6 50. Rxb7 $18) 49. Rah8 $2 {[%emt 0:00:19] [#]} (49. Rxh5 Rxb2 50. Rg5+ Kf7 51. Rh5) 49... Rf7 $2 {[%emt 0:02:21]} (49... Rxb2 50. R8h7+ (50. Rxh5 $2 Re7 $19) 50... Kg8 51. Rxb7 $18) ({Black should try} 49... Re7 $1 $19 {[%cal Re7e1]} 50. R6h7+ Kf6 51. Rf8+ Ke6 52. Rxh5 Kd7 (52... Rxb2 $2 53. Rc8 $19)) 50. R8h7+ $11 {[%emt 0:04:17]} Kf8 {[%emt 0:00:11]} 51. Rxf7+ $4 {[%emt 0:00:38][%mdl 8192]} (51. Rh8+ $11 Ke7 52. Ra6) 51... Kxf7 {[%emt 0:00:02]} 52. Rxh5 {[%emt 0:00:17]} Rxb2 {[%emt 0:00:23]} 53. Rb5 {[%emt 0:00:05]} Ke6 {[%emt 0:00:46]} 54. Re5+ {[%emt 0:01:42]} Kf6 {[%emt 0:00:15]} 55. Rb5 {[%emt 0:01:52]} g3 {[%emt 0:00:48]} 56. f5 {[%emt 0:11:02]} Kg5 {[%emt 0:00:11]} 57. f6+ {[%emt 0:01:29]} Kxf6 {[%emt 0:00:04]} 58. Rb8 {[%emt 0:00:07]} Ke5 {[%emt 0:00:56]} 59. Re8+ {[%emt 0:00:08]} Kd4 {[%emt 0:00:31]} 60. Rd8+ {[%emt 0:00:12]} Kc3 {[%emt 0:00:55]} 61. Rc8+ {[%emt 0:00:05]} Kd2 {[%emt 0:00:48]} 62. Rd8+ {[%emt 0:00:08]} Kc1 {[%emt 0:01:01]} 63. Rb8 {[%emt 0:00:05]} Rb1 {[%emt 0:02:00]} 64. Kg2 {[%emt 0:00:06]} Kb2 {[%emt 0:00:43]} 65. Kxg3 {[%emt 0:00:21]} Rf1 {[%emt 0:00:24]} 66. Kg4 {[%emt 0:01:18]} Kc2 {[%emt 0:00:15]} 67. Rc8+ {[%emt 0:00:15]} Kb1 {[%emt 0:00:07]} 68. Rb8 {[%emt 0:00:03]} b2 {[%emt 0:00:06]} 69. Rb7 {[%emt 0:00:24]} Kc2 {[%emt 0:00:40]} 70. Rc7+ {[%emt 0:00:12]} Kd3 {[%emt 0:00:15]} 0-1

[Event "USA-ch Women 2024"]
[Site "Saint Louis"]
[Date "2024.10.12"]
[Round "2.6"]
[White "Yu, Jennifer"]
[Black "Zatonskih, Anna"]
[Result "1/2-1/2"]
[ECO "D02"]
[WhiteElo "2267"]
[BlackElo "2312"]
[Annotator "RC"]
[PlyCount "145"]
[EventDate "2024.10.09"]
[EventType "tourn"]
[EventCountry "USA"]
[SourceTitle "playchess.com"]
[Source "ChessBase"]
[SourceQuality "1"]
[TimeControl "40/5400+30:1800+30"]

1. Nf3 {[%emt 0:00:08]} d5 {[%emt 0:03:43]} 2. g3 {[%emt 0:01:12]} Nd7 {[%emt 0:08:33]} 3. d4 {[%emt 0:01:53]} Nb6 {[%emt 0:00:06]} 4. Bg2 {[%emt 0:01:10]} Bf5 {[%emt 0:04:11]} 5. Nbd2 {[%emt 0:05:27]} c6 {[%emt 0:07:40]} 6. O-O {[%emt 0:08:47]} e6 {[%emt 0:09:57]} 7. Re1 {[%emt 0:05:13]} Nf6 {[%emt 0:03:15]} 8. Ne5 {[%emt 0:10:32]} Be7 {[%emt 0:07:54]} 9. c3 {[%emt 0:04:18]} O-O {[%emt 0:02:18]} 10. f3 {[%emt 0:04:34]} h6 {[%emt 0:02:02]} 11. e4 {[%emt 0:01:46]} Bh7 {[%emt 0:00:16]} 12. Nb3 {[%emt 0:01:54]} Na4 {[%emt 0:05:21]} 13. Nd3 {[%emt 0:07:37]} Rc8 {[%emt 0:01:55]} 14. Qe2 {[%emt 0:08:45]} b6 {[%emt 0:06:54]} 15. Nf2 {[%emt 0:02:20]} Kh8 {[%emt 0:09:19]} 16. Kh1 {[%emt 0:05:04]} Qd7 {[%emt 0:02:28]} 17. e5 {[%emt 0:05:21]} Ng8 {[%emt 0:00:20]} 18. Bf1 {[%emt 0:01:28]} a5 {[%emt 0:03:19]} 19. Be3 {[%emt 0:04:20]} c5 {[%emt 0:03:12]} 20. dxc5 {[%emt 0:01:24]} bxc5 {[%emt 0:00:35]} 21. Qb5 {[%emt 0:01:35]} Qxb5 {[%emt 0:00:31]} 22. Bxb5 {[%emt 0:00:05]} Nxb2 {[%emt 0:00:17]} 23. Nxa5 {[%emt 0:01:08]} c4 {[%emt 0:09:20]} 24. a4 {[%emt 0:01:35]} Bc5 {[%emt 0:02:49]} 25. Nc6 {[%emt 0:00:26]} Bxe3 {[%emt 0:01:09]} 26. Rxe3 {[%emt 0:00:04]} Rc7 {[%emt 0:00:10]} 27. Nb4 {[%emt 0:04:47]} Ne7 {[%emt 0:01:27]} 28. Re2 {[%emt 0:01:31]} Nd3 {[%emt 0:00:09]} 29. Nfxd3 {[%emt 0:01:52]} Bxd3 {[%emt 0:00:30]} 30. Nxd3 {[%emt 0:00:57]} cxd3 {[%emt 0:00:01]} 31. Rd2 {[%emt 0:01:35]} Rxc3 {[%emt 0:01:16]} 32. Rxd3 {[%emt 0:00:04]} Rc5 {[%emt 0:00:46]} 33. f4 {[%emt 0:00:35]} g5 {[%emt 0:01:20]} 34. Rf1 {[%emt 0:02:01]} Kg7 {[%emt 0:00:17]} 35. Kg2 {[%emt 0:01:26]} Nf5 {[%emt 0:02:00]} 36. Kh1 {[%emt 0:01:32]} Rfc8 {[%emt 0:00:50]} 37. g4 {[%emt 0:01:09]} Rc1 {[%emt 0:00:57]} 38. Kg1 {[%emt 0:01:20]} Ne7 {[%emt 0:00:17]} 39. f5 {[%emt 0:01:32]} exf5 {[%emt 0:00:08]} 40. gxf5 {[%emt 0:00:04]} Nxf5 {[%emt 0:00:49]} 41. a5 {[%emt 0:17:05]} Rxf1+ {[%emt 0:05:43]} 42. Kxf1 {[%emt 0:00:15]} Rc1+ {[%emt 0:01:43]} 43. Kf2 {[%emt 0:01:10]} Rc2+ {[%emt 0:05:09]} 44. Kg1 {[%emt 0:01:33]} Ra2 {[%emt 0:05:15]} 45. a6 {[%emt 0:02:12]} d4 {[%emt 0:02:44]} 46. h3 {[%emt 0:03:53]} h5 {[%emt 0:06:08]} 47. Bd7 {[%emt 0:02:46]} Ne7 {[%emt 0:02:10]} 48. Bb5 {[%emt 0:00:38]} Nf5 {[%emt 0:02:21]} 49. Bd7 {[%emt 0:00:05]} Kg6 {[%emt 0:01:29]} 50. Rf3 {[%emt 0:00:41]} Nh6 {[%emt 0:02:35]} 51. Rf6+ {[%emt 0:02:03]} Kg7 {[%emt 0:00:01]} 52. Rd6 {[%emt 0:00:34]} g4 {[%emt 0:01:22]} 53. hxg4 {[%emt 0:00:05]} Nxg4 {[%emt 0:00:14]} 54. e6 {[%emt 0:01:25]} fxe6 {[%emt 0:00:43]} 55. Bxe6 {[%emt 0:00:15]} Ra1+ {[%emt 0:00:50]} 56. Kg2 {[%emt 0:00:04]} Kf8 {[%emt 0:00:45]} 57. Bc8 {[%emt 0:01:59]} Ra4 {[%emt 0:00:47]} 58. Rd8+ {[%emt 0:02:49]} Ke7 {[%emt 0:00:02]} 59. Rd7+ {[%emt 0:00:03]} Kf6 {[%emt 0:00:30]} 60. a7 {[%emt 0:00:29]} Kg5 {[%emt 0:00:49]} 61. Rg7+ {[%emt 0:00:46]} Kh4 {[%emt 0:00:42]} 62. Be6 {[%emt 0:00:55]} Ra3 {[%emt 0:00:05]} 63. Kf1 {[%emt 0:00:47]} d3 {[%emt 0:00:28]} 64. Ke1 {[%emt 0:00:14]} Ne3 {[%emt 0:00:31]} 65. Rd7 {[%emt 0:00:13]} Kg5 {[%emt 0:00:30]} 66. Rxd3 {[%emt 0:01:05]} Rxa7 {[%emt 0:00:18]} 67. Rxe3 {[%emt 0:00:03]} Re7 {[%emt 0:00:05]} 68. Kf2 {[%emt 0:00:14]} Kf6 {[%emt 0:00:02]} 69. Bh3 {[%emt 0:00:09]} Rxe3 {[%emt 0:00:05]} 70. Kxe3 {[%emt 0:00:03]} h4 {[%emt 0:00:05]} 71. Kf4 {[%emt 0:00:02]} Ke7 {[%emt 0:00:03]} 72. Kg4 {[%emt 0:00:02]} Kd6 {[%emt 0:00:03]} 73. Kxh4 {[%emt 0:00:03]} 1/2-1/2